[Event "Titled Tuesday Blitz January 10 Early 2023"]
[White "Lauridsen, Jesper Morch"]
[Black "Valle Maytin, Luis Enrique"]
[WhiteFideId "1401890"]
[BlackFideId "3503666"]
[WhiteElo "2218"]
[BlackElo "2225"]
[Result "0-1"]
[Round "04"]
[TimeControl "180+1"]
[Date "2023.01.10"]
[WhiteClock "0:00:04"]
[BlackClock "0:00:08"]

1. e4 {[%clk 0:02:57]}  c6 {[%clk 0:02:59]} 2. d4 {[%clk 0:02:57]}  d5 {[%clk 0:03:00]} 3. exd5 {[%clk 0:02:57]}  cxd5 {[%clk 0:03:01]} 4. c4 {[%clk 0:02:57]}  Nf6 {[%clk 0:03:00]} 5. Nc3 {[%clk 0:02:58]}  Nc6 {[%clk 0:02:59]} 6. Nf3 {[%clk 0:02:57]}  Be6 {[%clk 0:02:58]} 7. c5 {[%clk 0:02:56]}  g6 {[%clk 0:02:58]} 8. Bb5 {[%clk 0:02:57]}  Bg7 {[%clk 0:02:58]} 9. O-O {[%clk 0:02:56]}  O-O {[%clk 0:02:57]} 10. Bxc6 {[%clk 0:02:56]}  bxc6 {[%clk 0:02:58]} 11. Re1 {[%clk 0:02:55]}  Qc7 {[%clk 0:02:56]} 12. Ne5 {[%clk 0:02:54]}  Nd7 {[%clk 0:02:53]} 13. Bf4 {[%clk 0:02:47]}  Qc8 {[%clk 0:02:43]} 14. Nxd7 {[%clk 0:02:43]}  Qxd7 {[%clk 0:02:43]} 15. Qd2 {[%clk 0:02:34]}  Rfe8 {[%clk 0:02:37]} 16. Bh6 {[%clk 0:02:18]}  Bh8 {[%clk 0:02:37]} 17. Qe2 {[%clk 0:02:03]}  Bxd4 {[%clk 0:02:29]} 18. Rad1 {[%clk 0:02:02]}  Bh8 {[%clk 0:02:24]} 19. Ne4 {[%clk 0:02:02]}  Bf5 {[%clk 0:02:18]} 20. Ng5 {[%clk 0:01:51]}  e5 {[%clk 0:02:12]} 21. h3 {[%clk 0:01:47]}  Qe7 {[%clk 0:02:01]} 22. g4 {[%clk 0:01:46]}  Bd7 {[%clk 0:02:01]} 23. b4 {[%clk 0:01:41]}  a5 {[%clk 0:01:58]} 24. a3 {[%clk 0:01:40]}  axb4 {[%clk 0:01:57]} 25. axb4 {[%clk 0:01:41]}  Reb8 {[%clk 0:01:56]} 26. Nf3 {[%clk 0:01:37]}  e4 {[%clk 0:01:49]} 27. Bg5 {[%clk 0:01:37]}  Bf6 {[%clk 0:01:30]} 28. Bxf6 {[%clk 0:01:02]}  Qxf6 {[%clk 0:01:31]} 29. Nd4 {[%clk 0:00:55]}  Rxb4 {[%clk 0:01:29]} 30. Qd2 {[%clk 0:00:53]}  Rab8 {[%clk 0:01:22]} 31. g5 {[%clk 0:00:52]}  Qe7 {[%clk 0:01:08]} 32. Qf4 {[%clk 0:00:51]}  Re8 {[%clk 0:00:51]} 33. h4 {[%clk 0:00:29]}  Qxc5 {[%clk 0:00:46]} 34. Ne2 {[%clk 0:00:19]}  e3 {[%clk 0:00:40]} 35. Qf3 {[%clk 0:00:17]}  exf2+ {[%clk 0:00:32]} 36. Qxf2 {[%clk 0:00:17]}  Qxf2+ {[%clk 0:00:28]} 37. Kxf2 {[%clk 0:00:17]}  Rxh4 {[%clk 0:00:29]} 38. Ng3 {[%clk 0:00:16]}  Rxe1 {[%clk 0:00:28]} 39. Rxe1 {[%clk 0:00:17]}  Be6 {[%clk 0:00:28]} 40. Kg2 {[%clk 0:00:15]}  Rg4 {[%clk 0:00:28]} 41. Kf3 {[%clk 0:00:14]}  Rxg5 {[%clk 0:00:28]} 42. Rc1 {[%clk 0:00:15]}  d4 {[%clk 0:00:25]} 43. Rb1 {[%clk 0:00:11]}  Bd5+ {[%clk 0:00:24]} 44. Kf2 {[%clk 0:00:11]}  Kg7 {[%clk 0:00:24]} 45. Rb7 {[%clk 0:00:10]}  h5 {[%clk 0:00:24]} 46. Rd7 {[%clk 0:00:09]}  h4 {[%clk 0:00:23]} 47. Ne2 {[%clk 0:00:10]}  c5 {[%clk 0:00:22]} 48. Nf4 {[%clk 0:00:10]}  Rf5 {[%clk 0:00:20]} 49. Kg1 {[%clk 0:00:06]}  Rxf4 {[%clk 0:00:20]} 50. Rxd5 {[%clk 0:00:06]}  c4 {[%clk 0:00:21]} 51. Kh2 {[%clk 0:00:06]}  c3 {[%clk 0:00:21]} 52. Kh3 {[%clk 0:00:07]}  f6 {[%clk 0:00:21]} 53. Rd7+ {[%clk 0:00:06]}  Kh6 {[%clk 0:00:22]} 54. Rc7 {[%clk 0:00:07]}  g5 {[%clk 0:00:22]} 55. Rc8 {[%clk 0:00:06]}  Kg6 {[%clk 0:00:22]} 56. Rc7 {[%clk 0:00:07]}  Rf3+ {[%clk 0:00:21]} 57. Kh2 {[%clk 0:00:06]}  Rd3 {[%clk 0:00:21]} 58. Rc8 {[%clk 0:00:06]}  Rd2+ {[%clk 0:00:21]} 59. Kh3 {[%clk 0:00:06]}  Kf5 {[%clk 0:00:20]} 60. Rc5+ {[%clk 0:00:06]}  Kg6 {[%clk 0:00:18]} 61. Rc8 {[%clk 0:00:04]}  Rd3+ {[%clk 0:00:16]} 62. Kh2 {[%clk 0:00:04]}  g4 {[%clk 0:00:16]} 63. Rc7 {[%clk 0:00:03]}  Rd2+ {[%clk 0:00:16]} 64. Kg1 {[%clk 0:00:04]}  c2 {[%clk 0:00:15]} 65. Rc6 {[%clk 0:00:03]}  Rd1+ {[%clk 0:00:14]} 66. Kf2 {[%clk 0:00:03]}  c1=Q {[%clk 0:00:08]} 67. Rxf6+ {[%clk 0:00:04]}  Kg7 {[%clk 0:00:08]} 0-1


[Site "https://www.chess.com"]

[Event "Titled Tuesday Blitz January 10 Early 2023"]
[White "Chernomordik, Pavel"]
[Black "Levine, David"]
[WhiteFideId "2804530"]
[BlackFideId "2011611"]
[WhiteElo "2193"]
[BlackElo "2153"]
[Result "1-0"]
[Round "04"]
[TimeControl "180+1"]
[Date "2023.01.10"]
[WhiteClock "0:00:10"]
[BlackClock "0:00:02"]

1. e4 {[%clk 0:03:00]}  e5 {[%clk 0:02:56]} 2. Nf3 {[%clk 0:03:00]}  Nc6 {[%clk 0:02:56]} 3. Bb5 {[%clk 0:02:56]}  a6 {[%clk 0:02:56]} 4. Ba4 {[%clk 0:02:55]}  Nf6 {[%clk 0:02:54]} 5. Qe2 {[%clk 0:02:55]}  b5 {[%clk 0:02:51]} 6. Bb3 {[%clk 0:02:54]}  Bc5 {[%clk 0:02:51]} 7. a4 {[%clk 0:02:54]}  Bb7 {[%clk 0:02:49]} 8. axb5 {[%clk 0:02:42]}  axb5 {[%clk 0:02:49]} 9. Rxa8 {[%clk 0:02:42]}  Qxa8 {[%clk 0:02:49]} 10. Qxb5 {[%clk 0:02:33]}  d6 {[%clk 0:02:45]} 11. O-O {[%clk 0:02:21]}  O-O {[%clk 0:02:45]} 12. Qe2 {[%clk 0:02:15]}  Na5 {[%clk 0:02:23]} 13. d3 {[%clk 0:02:08]}  Nxb3 {[%clk 0:02:21]} 14. cxb3 {[%clk 0:02:08]}  Qa2 {[%clk 0:02:20]} 15. Bg5 {[%clk 0:01:55]}  Nd7 {[%clk 0:02:08]} 16. Qc2 {[%clk 0:01:46]}  Bb6 {[%clk 0:01:42]} 17. Nc3 {[%clk 0:01:41]}  Qa7 {[%clk 0:01:39]} 18. Na4 {[%clk 0:01:29]}  Nc5 {[%clk 0:01:34]} 19. Nd2 {[%clk 0:01:17]}  Ne6 {[%clk 0:01:31]} 20. Nxb6 {[%clk 0:01:06]}  Qxb6 {[%clk 0:01:02]} 21. Nc4 {[%clk 0:00:57]}  Qa6 {[%clk 0:00:41]} 22. Be3 {[%clk 0:00:54]}  f5 {[%clk 0:00:33]} 23. exf5 {[%clk 0:00:46]}  Rxf5 {[%clk 0:00:32]} 24. d4 {[%clk 0:00:45]}  e4 {[%clk 0:00:28]} 25. Qd2 {[%clk 0:00:27]}  Qb5 {[%clk 0:00:24]} 26. Qc3 {[%clk 0:00:25]}  h6 {[%clk 0:00:21]} 27. Ra1 {[%clk 0:00:24]}  Kh7 {[%clk 0:00:19]} 28. Ra5 {[%clk 0:00:22]}  Qc6 {[%clk 0:00:19]} 29. Rxf5 {[%clk 0:00:21]}  d5 {[%clk 0:00:06]} 30. Ne5 {[%clk 0:00:18]}  Qe8 {[%clk 0:00:05]} 31. h4 {[%clk 0:00:17]}  Ba6 {[%clk 0:00:03]} 32. Rf7 {[%clk 0:00:15]}  Qb5 {[%clk 0:00:02]} 33. Kh2 {[%clk 0:00:10]} 1-0


[Site "https://www.chess.com"]

[Event "Titled Tuesday Blitz January 10 Early 2023"]
[White "Kirillov, Dmitry"]
[Black "Larina, Maria"]
[WhiteFideId "34180572"]
[BlackFideId "24113182"]
[WhiteElo "2111"]
[BlackElo "1848"]
[Result "0-1"]
[Round "04"]
[TimeControl "180+1"]
[Date "2023.01.10"]
[WhiteClock "0:00:04"]
[BlackClock "0:00:19"]

1. e4 {[%clk 0:03:00]}  c6 {[%clk 0:02:59]} 2. d4 {[%clk 0:03:00]}  d5 {[%clk 0:03:00]} 3. Nc3 {[%clk 0:03:01]}  dxe4 {[%clk 0:03:00]} 4. Nxe4 {[%clk 0:03:02]}  Nf6 {[%clk 0:03:01]} 5. Nxf6+ {[%clk 0:03:03]}  exf6 {[%clk 0:03:02]} 6. c3 {[%clk 0:03:03]}  Bd6 {[%clk 0:03:01]} 7. Bd3 {[%clk 0:03:04]}  O-O {[%clk 0:03:01]} 8. Qc2 {[%clk 0:03:04]}  Re8+ {[%clk 0:03:02]} 9. Ne2 {[%clk 0:03:04]}  h5 {[%clk 0:03:02]} 10. Be3 {[%clk 0:03:05]}  Nd7 {[%clk 0:03:02]} 11. O-O-O {[%clk 0:03:05]}  Nf8 {[%clk 0:03:02]} 12. Kb1 {[%clk 0:03:06]}  g6 {[%clk 0:03:02]} 13. c4 {[%clk 0:03:04]}  f5 {[%clk 0:03:02]} 14. g3 {[%clk 0:03:02]}  a5 {[%clk 0:02:50]} 15. h4 {[%clk 0:02:55]}  a4 {[%clk 0:02:46]} 16. Nc3 {[%clk 0:02:50]}  a3 {[%clk 0:02:44]} 17. b3 {[%clk 0:02:50]}  Bb4 {[%clk 0:02:31]} 18. Rhe1 {[%clk 0:02:19]}  Bd7 {[%clk 0:02:27]} 19. Bg5 {[%clk 0:02:13]}  Qa5 {[%clk 0:02:27]} 20. Bd2 {[%clk 0:02:09]}  Rxe1 {[%clk 0:02:24]} 21. Rxe1 {[%clk 0:02:08]}  Re8 {[%clk 0:02:25]} 22. Rxe8 {[%clk 0:02:08]}  Bxe8 {[%clk 0:02:26]} 23. Kc1 {[%clk 0:01:50]}  Ne6 {[%clk 0:02:25]} 24. d5 {[%clk 0:01:47]}  Nd4 {[%clk 0:02:17]} 25. Qd1 {[%clk 0:01:36]}  Bxc3 {[%clk 0:02:14]} 26. Be3 {[%clk 0:01:31]}  cxd5 {[%clk 0:01:53]} 27. f3 {[%clk 0:01:04]}  Ne6 {[%clk 0:01:30]} 28. g4 {[%clk 0:00:56]}  fxg4 {[%clk 0:01:29]} 29. fxg4 {[%clk 0:00:55]}  dxc4 {[%clk 0:01:27]} 30. Bxc4 {[%clk 0:00:36]}  Qe5 {[%clk 0:01:26]} 31. Qd3 {[%clk 0:00:29]}  Bb2+ {[%clk 0:01:21]} 32. Kd1 {[%clk 0:00:17]}  hxg4 {[%clk 0:01:11]} 33. Bf2 {[%clk 0:00:08]}  Nf4 {[%clk 0:00:53]} 34. Qc2 {[%clk 0:00:05]}  Qd6+ {[%clk 0:00:48]} 35. Ke1 {[%clk 0:00:04]}  Qe5+ {[%clk 0:00:27]} 36. Kd1 {[%clk 0:00:03]}  Bc6 {[%clk 0:00:22]} 37. Bg3 {[%clk 0:00:03]}  Bf3+ {[%clk 0:00:21]} 38. Be2 {[%clk 0:00:03]}  Bxe2+ {[%clk 0:00:20]} 39. Ke1 {[%clk 0:00:04]}  Bd3+ {[%clk 0:00:19]} 0-1


[Site "https://www.chess.com"]

[Event "Titled Tuesday Blitz January 10 Early 2023"]
[White "Yaran, Siar"]
[Black "Fernandez Garcia, Gumersindo"]
[WhiteFideId "6323006"]
[BlackFideId "24516740"]
[WhiteElo "2191"]
[BlackElo "2093"]
[Result "0-1"]
[Round "04"]
[TimeControl "180+1"]
[Date "2023.01.10"]
[WhiteClock "0:00:01"]
[BlackClock "0:00:13"]

1. e4 {[%clk 0:02:56]}  c5 {[%clk 0:02:56]} 2. Nf3 {[%clk 0:02:56]}  g6 {[%clk 0:02:56]} 3. d4 {[%clk 0:02:55]}  cxd4 {[%clk 0:02:56]} 4. Nxd4 {[%clk 0:02:56]}  Bg7 {[%clk 0:02:57]} 5. c4 {[%clk 0:02:56]}  Nc6 {[%clk 0:02:58]} 6. Be3 {[%clk 0:02:55]}  Nf6 {[%clk 0:02:58]} 7. Nc3 {[%clk 0:02:55]}  Ng4 {[%clk 0:02:57]} 8. Qxg4 {[%clk 0:02:55]}  Nxd4 {[%clk 0:02:57]} 9. Qd1 {[%clk 0:02:55]}  Ne6 {[%clk 0:02:56]} 10. Be2 {[%clk 0:02:48]}  Bxc3+ {[%clk 0:02:43]} 11. bxc3 {[%clk 0:02:46]}  d6 {[%clk 0:02:43]} 12. O-O {[%clk 0:02:43]}  Bd7 {[%clk 0:02:41]} 13. f4 {[%clk 0:02:42]}  Bc6 {[%clk 0:02:40]} 14. f5 {[%clk 0:02:42]}  Nc5 {[%clk 0:02:35]} 15. e5 {[%clk 0:02:41]}  f6 {[%clk 0:02:04]} 16. exf6 {[%clk 0:02:30]}  exf6 {[%clk 0:02:03]} 17. Qd4 {[%clk 0:01:46]}  O-O {[%clk 0:01:56]} 18. Bh6 {[%clk 0:01:31]}  Rf7 {[%clk 0:01:56]} 19. Qg4 {[%clk 0:01:26]}  g5 {[%clk 0:01:40]} 20. h4 {[%clk 0:01:25]}  Ne4 {[%clk 0:01:40]} 21. Bd3 {[%clk 0:01:16]}  d5 {[%clk 0:01:40]} 22. Rae1 {[%clk 0:01:07]}  Kh8 {[%clk 0:01:13]} 23. cxd5 {[%clk 0:01:00]}  Qb6+ {[%clk 0:01:09]} 24. Kh2 {[%clk 0:01:00]}  Nf2 {[%clk 0:01:08]} 25. Qh5 {[%clk 0:00:24]}  Qc7+ {[%clk 0:01:02]} 26. d6 {[%clk 0:00:17]}  Qxd6+ {[%clk 0:01:00]} 27. Kg1 {[%clk 0:00:17]}  Rc7 {[%clk 0:00:50]} 28. Rxf2 {[%clk 0:00:17]}  Qxd3 {[%clk 0:00:50]} 29. hxg5 {[%clk 0:00:17]}  Qxc3 {[%clk 0:00:34]} 30. Rd1 {[%clk 0:00:15]}  Rg8 {[%clk 0:00:20]} 31. g6 {[%clk 0:00:08]}  Ba4 {[%clk 0:00:20]} 32. Rd6 {[%clk 0:00:06]}  Qe5 {[%clk 0:00:19]} 33. Re6 {[%clk 0:00:05]}  Qa1+ {[%clk 0:00:18]} 34. Kh2 {[%clk 0:00:04]}  Qd4 {[%clk 0:00:17]} 35. Be3 {[%clk 0:00:03]}  Qd5 {[%clk 0:00:15]} 36. Rf3 {[%clk 0:00:03]}  Bd1 {[%clk 0:00:14]} 37. g7+ {[%clk 0:00:02]}  Rcxg7 {[%clk 0:00:13]} 38. Rxf6 {[%clk 0:00:01]}  Bxf3 {[%clk 0:00:13]} 0-1


[Site "https://www.chess.com"]

[Event "Titled Tuesday Blitz January 10 Early 2023"]
[White "Melaugh, Shane"]
[Black "Slovineanu, Viacheslav"]
[WhiteFideId "2509580"]
[BlackFideId "13900510"]
[WhiteElo "2025"]
[BlackElo "2312"]
[Result "1-0"]
[Round "04"]
[TimeControl "180+1"]
[Date "2023.01.10"]
[WhiteClock "0:00:12"]
[BlackClock "0:00:02"]

1. c4 {[%clk 0:03:00]}  g6 {[%clk 0:02:57]} 2. Nc3 {[%clk 0:02:58]}  Bg7 {[%clk 0:02:58]} 3. g3 {[%clk 0:02:56]}  d6 {[%clk 0:02:56]} 4. Bg2 {[%clk 0:02:56]}  e5 {[%clk 0:02:55]} 5. e3 {[%clk 0:02:54]}  Ne7 {[%clk 0:02:54]} 6. b3 {[%clk 0:02:54]}  O-O {[%clk 0:02:46]} 7. Bb2 {[%clk 0:02:53]}  Na6 {[%clk 0:02:42]} 8. Nf3 {[%clk 0:02:51]}  c6 {[%clk 0:02:31]} 9. O-O {[%clk 0:02:49]}  Nc7 {[%clk 0:02:26]} 10. d4 {[%clk 0:02:49]}  exd4 {[%clk 0:02:26]} 11. exd4 {[%clk 0:02:49]}  d5 {[%clk 0:02:26]} 12. Ne5 {[%clk 0:02:36]}  Bxe5 {[%clk 0:02:04]} 13. dxe5 {[%clk 0:02:37]}  dxc4 {[%clk 0:02:04]} 14. Qc1 {[%clk 0:02:15]}  cxb3 {[%clk 0:01:59]} 15. Ne4 {[%clk 0:02:15]}  Ned5 {[%clk 0:01:53]} 16. Qh6 {[%clk 0:02:08]}  Ne6 {[%clk 0:01:06]} 17. Bh3 {[%clk 0:02:05]}  f5 {[%clk 0:00:53]} 18. exf6 {[%clk 0:02:01]}  Nxf6 {[%clk 0:00:40]} 19. Nxf6+ {[%clk 0:01:21]}  Rxf6 {[%clk 0:00:40]} 20. Bxf6 {[%clk 0:01:14]}  Qxf6 {[%clk 0:00:39]} 21. axb3 {[%clk 0:01:11]}  a6 {[%clk 0:00:26]} 22. Qe3 {[%clk 0:01:07]}  Ng5 {[%clk 0:00:17]} 23. Qe8+ {[%clk 0:00:51]}  Qf8 {[%clk 0:00:17]} 24. Qxf8+ {[%clk 0:00:51]}  Kxf8 {[%clk 0:00:17]} 25. Bxc8 {[%clk 0:00:50]}  Rxc8 {[%clk 0:00:18]} 26. f4 {[%clk 0:00:50]}  Ne6 {[%clk 0:00:16]} 27. Rad1 {[%clk 0:00:49]}  Rd8 {[%clk 0:00:13]} 28. Rxd8+ {[%clk 0:00:47]}  Nxd8 {[%clk 0:00:13]} 29. f5 {[%clk 0:00:48]}  gxf5 {[%clk 0:00:12]} 30. Rxf5+ {[%clk 0:00:49]}  Ke7 {[%clk 0:00:10]} 31. Rh5 {[%clk 0:00:48]}  Nf7 {[%clk 0:00:08]} 32. Rxh7 {[%clk 0:00:48]}  b5 {[%clk 0:00:06]} 33. Kf2 {[%clk 0:00:42]}  c5 {[%clk 0:00:05]} 34. Rh4 {[%clk 0:00:41]}  Kd6 {[%clk 0:00:04]} 35. Ke3 {[%clk 0:00:40]}  a5 {[%clk 0:00:04]} 36. Kd3 {[%clk 0:00:40]}  Ne5+ {[%clk 0:00:04]} 37. Kc3 {[%clk 0:00:38]}  b4+ {[%clk 0:00:03]} 38. Kc2 {[%clk 0:00:35]}  Kd5 {[%clk 0:00:03]} 39. Rh5 {[%clk 0:00:20]}  Kd4 {[%clk 0:00:03]} 40. Rh8 {[%clk 0:00:14]}  Nf3 {[%clk 0:00:02]} 41. Rd8+ {[%clk 0:00:12]} 1-0


[Site "https://www.chess.com"]

[Event "Titled Tuesday Blitz January 10 Early 2023"]
[White "Harshal, Shahi"]
[Black "Solovyov, Semen Ivn"]
[WhiteFideId "5048257"]
[BlackFideId "55662994"]
[WhiteElo "2054"]
[BlackElo "2421"]
[Result "1-0"]
[Round "04"]
[TimeControl "180+1"]
[Date "2023.01.10"]
[WhiteClock "0:00:21"]
[BlackClock "0:00:11"]

1. e4 {[%clk 0:03:00]}  e5 {[%clk 0:02:57]} 2. Nf3 {[%clk 0:03:00]}  Nc6 {[%clk 0:02:57]} 3. Bc4 {[%clk 0:03:00]}  Nf6 {[%clk 0:02:56]} 4. d3 {[%clk 0:03:01]}  d5 {[%clk 0:02:56]} 5. exd5 {[%clk 0:02:55]}  Nxd5 {[%clk 0:02:57]} 6. O-O {[%clk 0:02:55]}  Bc5 {[%clk 0:02:56]} 7. Re1 {[%clk 0:02:53]}  O-O {[%clk 0:02:57]} 8. Nbd2 {[%clk 0:02:53]}  Re8 {[%clk 0:02:49]} 9. Ne4 {[%clk 0:02:53]}  Be7 {[%clk 0:02:49]} 10. c3 {[%clk 0:02:51]}  h6 {[%clk 0:02:41]} 11. h3 {[%clk 0:02:51]}  Be6 {[%clk 0:02:39]} 12. b4 {[%clk 0:02:50]}  f5 {[%clk 0:02:34]} 13. Ng3 {[%clk 0:02:47]}  Qd6 {[%clk 0:02:33]} 14. b5 {[%clk 0:02:40]}  Na5 {[%clk 0:02:33]} 15. Nxe5 {[%clk 0:02:41]}  Bf6 {[%clk 0:02:04]} 16. d4 {[%clk 0:01:40]}  Nxc3 {[%clk 0:01:53]} 17. Bxe6+ {[%clk 0:01:33]}  Rxe6 {[%clk 0:01:54]} 18. Qd2 {[%clk 0:01:18]}  Nxb5 {[%clk 0:01:21]} 19. Qxa5 {[%clk 0:00:53]}  Nxd4 {[%clk 0:01:20]} 20. Bf4 {[%clk 0:00:36]}  Nc2 {[%clk 0:00:40]} 21. Rad1 {[%clk 0:00:29]}  Rxe5 {[%clk 0:00:20]} 22. Bxe5 {[%clk 0:00:21]}  Qb4 {[%clk 0:00:14]} 23. Qxb4 {[%clk 0:00:20]}  Nxb4 {[%clk 0:00:13]} 24. Bxf6 {[%clk 0:00:20]}  gxf6 {[%clk 0:00:14]} 25. Nxf5 {[%clk 0:00:21]}  Nc6 {[%clk 0:00:13]} 26. Rd7 {[%clk 0:00:20]}  Ne5 {[%clk 0:00:12]} 27. Rxc7 {[%clk 0:00:19]}  Re8 {[%clk 0:00:11]} 28. f4 {[%clk 0:00:19]}  Nf3+ {[%clk 0:00:11]} 29. gxf3 {[%clk 0:00:20]}  Rxe1+ {[%clk 0:00:11]} 30. Kf2 {[%clk 0:00:21]}  Rb1 {[%clk 0:00:12]} 31. Nxh6+ {[%clk 0:00:21]}  Kf8 {[%clk 0:00:13]} 32. Rf7+ {[%clk 0:00:21]}  Ke8 {[%clk 0:00:13]} 33. Rxf6 {[%clk 0:00:22]}  Rb2+ {[%clk 0:00:13]} 34. Kg3 {[%clk 0:00:22]}  Rxa2 {[%clk 0:00:13]} 35. Re6+ {[%clk 0:00:23]}  Kd7 {[%clk 0:00:13]} 36. f5 {[%clk 0:00:23]}  Ra1 {[%clk 0:00:13]} 37. Ng4 {[%clk 0:00:24]}  a5 {[%clk 0:00:12]} 38. Ne5+ {[%clk 0:00:24]}  Kc7 {[%clk 0:00:13]} 39. f6 {[%clk 0:00:25]}  Rg1+ {[%clk 0:00:11]} 40. Kf4 {[%clk 0:00:25]}  Rg8 {[%clk 0:00:12]} 41. f7 {[%clk 0:00:24]}  Rf8 {[%clk 0:00:12]} 42. Re7+ {[%clk 0:00:25]}  Kd6 {[%clk 0:00:12]} 43. Rd7+ {[%clk 0:00:25]}  Ke6 {[%clk 0:00:12]} 44. Rxb7 {[%clk 0:00:24]}  Ra8 {[%clk 0:00:13]} 45. Nd7 {[%clk 0:00:22]}  a4 {[%clk 0:00:11]} 46. f8=Q {[%clk 0:00:21]} 1-0


[Site "https://www.chess.com"]

[Event "Titled Tuesday Blitz January 10 Early 2023"]
[White "Duda, Jan-Krzysztof"]
[Black "Ohanyan, Emin"]
[WhiteFideId "1170546"]
[BlackFideId "13312022"]
[WhiteElo "2724"]
[BlackElo "2444"]
[Result "1-0"]
[Round "04"]
[TimeControl "180+2"]
[Date "2023.01.10"]
[WhiteClock "0:00:32"]
[BlackClock "0:00:05"]

1. e4 {[%clk 0:03:00]}  e5 {[%clk 0:03:00]} 2. Nf3 {[%clk 0:03:00]}  Nc6 {[%clk 0:03:00]} 3. Bb5 {[%clk 0:03:00]}  f5 {[%clk 0:03:00]} 4. d3 {[%clk 0:02:59]}  fxe4 {[%clk 0:03:01]} 5. dxe4 {[%clk 0:03:00]}  Nf6 {[%clk 0:03:01]} 6. Nc3 {[%clk 0:02:58]}  Bb4 {[%clk 0:03:01]} 7. O-O {[%clk 0:02:46]}  Bxc3 {[%clk 0:03:01]} 8. bxc3 {[%clk 0:02:47]}  d6 {[%clk 0:03:01]} 9. Bc4 {[%clk 0:02:38]}  Qe7 {[%clk 0:03:01]} 10. Qd3 {[%clk 0:02:36]}  Be6 {[%clk 0:02:55]} 11. Bb3 {[%clk 0:02:36]}  O-O {[%clk 0:02:28]} 12. Ng5 {[%clk 0:02:36]}  Bxb3 {[%clk 0:02:28]} 13. axb3 {[%clk 0:02:36]}  h6 {[%clk 0:02:28]} 14. Nh3 {[%clk 0:02:28]}  a6 {[%clk 0:02:22]} 15. f3 {[%clk 0:02:28]}  Qe6 {[%clk 0:02:18]} 16. Nf2 {[%clk 0:02:24]}  Ne7 {[%clk 0:02:18]} 17. c4 {[%clk 0:02:18]}  b6 {[%clk 0:02:13]} 18. Nd1 {[%clk 0:02:13]}  Nc6 {[%clk 0:02:03]} 19. Ne3 {[%clk 0:02:12]}  a5 {[%clk 0:01:45]} 20. Bd2 {[%clk 0:02:11]}  Nd7 {[%clk 0:01:35]} 21. Nd5 {[%clk 0:02:01]}  Rac8 {[%clk 0:01:34]} 22. Be3 {[%clk 0:01:50]}  Rf7 {[%clk 0:01:21]} 23. Qd2 {[%clk 0:01:49]}  Nf8 {[%clk 0:01:06]} 24. c3 {[%clk 0:01:32]}  Qg6 {[%clk 0:01:01]} 25. b4 {[%clk 0:01:13]}  Ne6 {[%clk 0:01:00]} 26. Kh1 {[%clk 0:01:08]}  Kh8 {[%clk 0:00:58]} 27. h3 {[%clk 0:01:04]}  Ra8 {[%clk 0:00:52]} 28. Kh2 {[%clk 0:01:02]}  Ne7 {[%clk 0:00:51]} 29. Rfb1 {[%clk 0:00:58]}  Nxd5 {[%clk 0:00:49]} 30. cxd5 {[%clk 0:00:55]}  Nf4 {[%clk 0:00:47]} 31. bxa5 {[%clk 0:00:54]}  Rxa5 {[%clk 0:00:43]} 32. Rxa5 {[%clk 0:00:53]}  bxa5 {[%clk 0:00:44]} 33. Ra1 {[%clk 0:00:49]}  Nh5 {[%clk 0:00:42]} 34. Qf2 {[%clk 0:00:48]}  Nf6 {[%clk 0:00:36]} 35. Qg3 {[%clk 0:00:48]}  Qh5 {[%clk 0:00:30]} 36. Rxa5 {[%clk 0:00:47]}  Kh7 {[%clk 0:00:31]} 37. c4 {[%clk 0:00:46]}  Nd7 {[%clk 0:00:29]} 38. Ra7 {[%clk 0:00:45]}  Nf8 {[%clk 0:00:29]} 39. Qg4 {[%clk 0:00:45]}  Qg6 {[%clk 0:00:25]} 40. Qxg6+ {[%clk 0:00:41]}  Nxg6 {[%clk 0:00:26]} 41. c5 {[%clk 0:00:41]}  dxc5 {[%clk 0:00:21]} 42. Bxc5 {[%clk 0:00:40]}  Kg8 {[%clk 0:00:21]} 43. Bb4 {[%clk 0:00:35]}  Nf4 {[%clk 0:00:17]} 44. Ba5 {[%clk 0:00:35]}  Rf6 {[%clk 0:00:06]} 45. Bxc7 {[%clk 0:00:34]}  Ra6 {[%clk 0:00:05]} 46. Rxa6 {[%clk 0:00:32]} 1-0


[Site "https://www.chess.com"]

[Event "Titled Tuesday Blitz January 10 Early 2023"]
[White "Andreikin, Dmitry"]
[Black "Vakhlamov, Igor L."]
[WhiteFideId "4158814"]
[BlackFideId "24126748"]
[WhiteElo "2729"]
[BlackElo "2413"]
[Result "1-0"]
[Round "04"]
[TimeControl "180+2"]
[Date "2023.01.10"]
[WhiteClock "0:01:13"]
[BlackClock "0:00:13"]

1. d4 {[%clk 0:03:00]}  d5 {[%clk 0:02:57]} 2. c4 {[%clk 0:03:01]}  e6 {[%clk 0:02:55]} 3. Nf3 {[%clk 0:03:01]}  Nf6 {[%clk 0:02:53]} 4. g3 {[%clk 0:03:01]}  c5 {[%clk 0:02:54]} 5. cxd5 {[%clk 0:03:00]}  cxd4 {[%clk 0:02:54]} 6. Bg2 {[%clk 0:02:58]}  Bc5 {[%clk 0:02:53]} 7. O-O {[%clk 0:02:57]}  O-O {[%clk 0:02:53]} 8. Nbd2 {[%clk 0:02:55]}  exd5 {[%clk 0:02:31]} 9. Nb3 {[%clk 0:02:55]}  Bb6 {[%clk 0:02:31]} 10. Nbxd4 {[%clk 0:02:48]}  Nc6 {[%clk 0:02:32]} 11. Bf4 {[%clk 0:02:44]}  Re8 {[%clk 0:02:31]} 12. e3 {[%clk 0:02:40]}  Bg4 {[%clk 0:02:26]} 13. h3 {[%clk 0:02:40]}  Nxd4 {[%clk 0:02:17]} 14. hxg4 {[%clk 0:02:39]}  Nxf3+ {[%clk 0:02:16]} 15. Qxf3 {[%clk 0:02:36]}  Qd7 {[%clk 0:02:10]} 16. Rad1 {[%clk 0:02:33]}  Rad8 {[%clk 0:02:03]} 17. Bg5 {[%clk 0:02:31]}  Re6 {[%clk 0:01:02]} 18. Bxf6 {[%clk 0:02:30]}  Rxf6 {[%clk 0:01:03]} 19. Rxd5 {[%clk 0:02:30]}  Qxd5 {[%clk 0:00:56]} 20. Qxd5 {[%clk 0:02:29]}  Rxd5 {[%clk 0:00:57]} 21. Bxd5 {[%clk 0:02:29]}  Rd6 {[%clk 0:00:57]} 22. Bxb7 {[%clk 0:02:27]}  Rd2 {[%clk 0:00:57]} 23. b3 {[%clk 0:02:15]}  Rxa2 {[%clk 0:00:56]} 24. Rd1 {[%clk 0:02:15]}  Kf8 {[%clk 0:00:56]} 25. Rd7 {[%clk 0:02:14]}  Ke8 {[%clk 0:00:50]} 26. Bc6 {[%clk 0:02:10]}  Rc2 {[%clk 0:00:51]} 27. Ba4 {[%clk 0:02:05]}  Kf8 {[%clk 0:00:45]} 28. Bb5 {[%clk 0:02:03]}  Rc7 {[%clk 0:00:43]} 29. Rd8+ {[%clk 0:02:02]}  Ke7 {[%clk 0:00:43]} 30. Re8+ {[%clk 0:02:02]}  Kd6 {[%clk 0:00:43]} 31. Bc4 {[%clk 0:02:02]}  f6 {[%clk 0:00:42]} 32. Kg2 {[%clk 0:02:01]}  a5 {[%clk 0:00:42]} 33. Re6+ {[%clk 0:01:55]}  Kc5 {[%clk 0:00:42]} 34. g5 {[%clk 0:01:55]}  fxg5 {[%clk 0:00:34]} 35. Re5+ {[%clk 0:01:56]}  Kd6 {[%clk 0:00:34]} 36. Rd5+ {[%clk 0:01:55]}  Kc6 {[%clk 0:00:29]} 37. Rxg5 {[%clk 0:01:54]}  g6 {[%clk 0:00:30]} 38. e4 {[%clk 0:01:51]}  Bc5 {[%clk 0:00:30]} 39. f4 {[%clk 0:01:50]}  Kd6 {[%clk 0:00:23]} 40. Rd5+ {[%clk 0:01:50]}  Ke7 {[%clk 0:00:22]} 41. e5 {[%clk 0:01:49]}  Bb4 {[%clk 0:00:20]} 42. g4 {[%clk 0:01:43]}  a4 {[%clk 0:00:20]} 43. f5 {[%clk 0:01:15]}  gxf5 {[%clk 0:00:18]} 44. gxf5 {[%clk 0:01:16]}  a3 {[%clk 0:00:19]} 45. f6+ {[%clk 0:01:17]}  Ke8 {[%clk 0:00:19]} 46. e6 {[%clk 0:01:16]}  a2 {[%clk 0:00:16]} 47. Bb5+ {[%clk 0:01:15]}  Rd7 {[%clk 0:00:14]} 48. Rxd7 {[%clk 0:01:13]}  a1=Q {[%clk 0:00:13]} 49. Rd6+ {[%clk 0:01:12]}  Kf8 {[%clk 0:00:13]} 50. Rd8# {[%clk 0:01:13]} 1-0


[Site "https://www.chess.com"]